Cogmind - Beta 13 @@@ ROGUE MODE // 2024.03.31 @ 16:28:01 Player: SEE YOU SPACE BUNNY Result: Destroyed by G-34 Mercenary with Small Laser Performance ------------- Evolutions (0) 0 Regions Visited (1) 200 Robots Destroyed (11) 55 Value Destroyed (209) 209 Prototype IDs (2) 40 Alien Tech Used (0) 0 Bonus (0) 0 TOTAL SCORE: 504 Bonus ------- None Cogmind --------- Core Integrity 0/250 Matter 300/300 Energy 100/100 System Corruption 6% Temperature Cool (6) Movement Core (350) Ox6 Location -10/Materials Parts ------- > --- POWER (1) -------- (None) > --- PROPULSION (2) --- (None) > --- UTILITY (2) ------ Large Storage Unit > --- WEAPON (2) ------- (None) > --- INVENTORY (15) --- Aluminum Leg Flight Unit Flight Unit Heat Sink Small Matter Pod (50) Medium Matter Pod (17) Datajack Peak State ------------ > --- POWER ------------ Light Ion Engine > --- PROPULSION ------- Aluminum Leg Aluminum Leg > --- UTILITY ---------- Heat Sink Small Matter Pod > --- WEAPON ----------- EM Pulse Gun Medium Laser > --- INVENTORY -------- Ion Engine Aluminum Leg Aluminum Leg Small Laser [Rating: 7] Favorites ----------- Power Light Ion Engine Engine Light Ion Engine Propulsion Aluminum Leg Leg Aluminum Leg Utility Terrain Scanner Device Terrain Scanner Storage Large Storage Unit Processor Signal Interpreter Weapon Medium Laser Energy Gun Medium Laser Launcher Grenade Launcher Special Melee Weapon Datajack Build | -11 -10 ------- Run | Yrd Mat Slots Evolved . | . . Power . | . . Propulsion . | . . Utility . | . . Weapon . | . . Parts Attached 13 | 6 7 Power 1 | 1 . Engine 1 | 1 . Core . | . . Reactor . | . . Propulsion 2 | 2 . Treads . | . . Leg 2 | 2 . Wheel . | . . Hover . | . . Flight . | . . Utility 5 | . 5 Device 2 | . 2 Storage 2 | . 2 Processor 1 | . 1 Hackware . | . . Protection . | . . Artifact . | . . Weapon 5 | 3 2 Energy Gun 3 | 3 . Energy Cannon . | . . Ballistic Gun . | . . Ballistic Cannon . | . . Launcher 1 | . 1 Special Weapon . | . . Impact Weapon . | . . Slashing Weapon . | . . Piercing Weapon . | . . Special Melee Weapon 1 | . 1 Unidentified Prototypes . | . . Parts Lost 6 | . 6 Power 1 | . 1 Propulsion 2 | . 2 Utility 1 | . 1 Weapon 2 | . 2 Highest Loss Streak 6 | . 6 To Critical Strikes . | . . Average Slot Usage (%) 92 | . 92 Engine 13 | . 13 Leg 27 | . 27 Device 14 | . 14 Storage 4 | . 4 Processor 4 | . 4 Energy Gun 20 | . 20 Launcher 3 | . 3 Special Melee Weapon 2 | . 2 Naked Turns . | . . Heaviest Build 29 | 7 29 Greatest Support 20 | 20 20 Greatest Overweight (x) 6 | . 6 Average Overweight (x) . | . . Largest Inventory Capacity 15 | 5 15 Average Capacity 6 | 5 6 Most Carried 7 | 5 7 Average Carried 4 | 3 4 Final Capacity 15 | 5 15 Final Carried 7 | 5 7 Class Distribution -------------------- 100% | Mutant Dominant Class ---------------- Mutant | -10/Materials Resources | -11 -10 ----------- Run | Yrd Mat Matter Collected 437 | 260 177 Remotely . | . . Salvage Created 191 | 50 141 Parts 24 | 5 19 Haulers Intercepted . | . . Recyclers Shooed . | . . Parts Field Recycled . | . . Retrieved Matter . | . . Parts Self-Destructed . | . . Prevented . | . . Kills | -11 -10 ------- Run | Yrd Mat Combat Hostiles Destroyed 9 | 1 8 Guns 1 | 1 . AOE 8 | . 8 Classes Destroyed 4 | 1 3 Worker 1 | . 1 Operator 1 | . 1 Swarmer 6 | . 6 Grunt 3 | 1 2 Best Kill Streak 4 | 1 4 Combat Bots Only 4 | 1 4 Max Kills in Single Turn 3 | 1 3 Gunslinging . | . . Exploded 3 | . 3 Melee . | . . Uniques/NPCs Destroyed . | . . Combat | -11 -10 -------- Run | Yrd Mat Hostile Shots Fired 88 | 10 78 Missed 30 | 4 26 Damage Taken 750 | 65 685 Core 250 | 21 229 Absorbed by Shields . | . . Core Remaining (%) 91 | 91 . Volleys Fired 25 | 8 17 Largest 2 | 2 2 Hottest 90 | 90 80 Shots Fired 40 | 16 24 Gun 33 | 16 17 Cannon . | . . Launcher 7 | . 7 Special . | . . Kinetic . | . . Thermal 25 | 8 17 Explosive 7 | . 7 Electromagnetic 8 | 8 . Robot Hit Streak 6 | 5 6 Robot Miss Streak 6 | 6 4 Penetration Max . | . . Secondary Targets . | . . Shots Hit Robots 25 | 6 19 Core Hits 15 | 2 13 Critical Kills . | . . Critical Parts Destroyed . | . . Critical Strikes . | . . Melee Attacks 8 | . 8 Impact . | . . Slashing . | . . Piercing . | . . Sneak Attacks 7 | . 7 Combat Hostiles . | . . Follow-up Attacks . | . . Damage Inflicted 548 | 75 473 Guns 187 | 75 112 Cannons . | . . Explosions 361 | . 361 Melee . | . . Ramming . | . . Kinetic . | . . Thermal 151 | 39 112 Explosive 361 | . 361 Electromagnetic 36 | 36 . Impact . | . . Slashing . | . . Piercing . | . . Highest Corruption 6 | . 6 Average Corruption 5 | . 5 Corruption Purged . | . . Corruption Blocked . | . . Effects 4 | . 4 Message Errors 1 | . 1 Misfires 1 | . 1 Alerts 1 | . 1 Weapon Failures 1 | . 1 Overload Shots . | . . Overflow Damage 18 | . 18 Projectiles . | . . Explosions 18 | . 18 Melee . | . . Knockbacks . | . . Impact . | . . Kinetic . | . . Secondary . | . . Self-Inflicted Damage 87 | . 87 Shots 3 | . 3 Rammed . | . . Targets Rammed . | . . Kicked . | . . Crushed . | . . Highest Temperature 186 | 186 60 Average Temperature 48 | 85 20 Received Heat Transfer 321 | 36 285 Siege Activations . | . . Robots Corrupted . | . . Combat Hostiles . | . . Parts Fried . | . . Impact Corruptions . | . . Robots Melted . | . . Combat Hostiles . | . . Parts Melted . | . . Heat Transferred 444 | 111 333 Parts Sabotaged . | . . Parts Stolen . | . . Parts Stripped . | . . Power Chain Reactions . | . . Alert | -11 -10 ------- Run | Yrd Mat Peak Influence 340 | 20 340 Initial 13 | . 13 Average 74 | 9 97 Maximum Alert Level 1 | . 1 Low Security (%) 81 | 100 74 Level 1 18 | . 25 Level 2 . | . . Level 3 . | . . Level 4 . | . . Level 5 . | . . High Security . | . . Max Security . | . . Squads Dispatched 3 | . 3 Investigation 1 | . 1 Extermination . | . . Reinforcement 2 | . 2 Assault . | . . Garrison . | . . Intercept . | . . Searches Triggered . | . . Construction Impeded . | . . Haulers Reinforced . | . . Active Scanning Responses . | . . Cargo Convoy Interrupts . | . . Stealth | -11 -10 --------- Run | Yrd Mat Distress Signals 1 | . 1 Communications Jammed . | . . Distress Signals . | . . Times Spotted 17 | 1 16 Peak Tracking Total 5 | 1 5 Tactical Retreats . | . . Traps | -11 -10 ------- Run | Yrd Mat Traps Triggered 5 | . 5 Indirectly . | . . Trap Hack Attempts . | . . Triggered . | . . Disarmed . | . . Reprogrammed . | . . Reused . | . . Traps Extracted . | . . Installed . | . . Triggered . | . . Machines | -11 -10 ---------- Run | Yrd Mat Machines Disabled 3 | . 3 Max in Single Turn 2 | . 2 Machines Repaired . | . . Machines Dismantled . | . . Machines Sabotaged . | . . Overloaded Fab Kills . | . . Hacking | -11 -10 --------- Run | Yrd Mat Machines Accessed 5 | . 5 Terminals 4 | . 4 Fabricators . | . . Repair Stations . | . . Recycling Units 1 | . 1 Scanalyzers . | . . Garrison Access . | . . Total Hacks 16 | . 16 Successful 10 | . 10 Failed 6 | . 6 Catastrophic 1 | . 1 Database Lockouts . | . . Manual . | . . Terminals 14 | . 14 Fabricators . | . . Repair Stations . | . . Recycling Units 2 | . 2 Scanalyzers . | . . Garrison Access . | . . Terminal Hacks 9 | . 9 Record 3 | . 3 Prototype ID Bank 1 | . 1 Emergency Access Points 1 | . 1 Alert Level 1 | . 1 Dispatch Records 1 | . 1 Hauler Manifests 1 | . 1 Zone Layout 1 | . 1 Fabricator Hacks . | . . Repair Station Hacks . | . . Recycling Unit Hacks 1 | . 1 Process 1 | . 1 Scanalyzer . | . . Garrison Access Hacks . | . . Unauthorized Hacks . | . . Terminals . | . . Fabricators . | . . Repair Stations . | . . Recycling Units . | . . Scanalyzers . | . . Garrison Access . | . . Data Cores Recovered . | . . Used . | . . Hacking Detections 5 | . 5 Full Trace Events 1 | . 1 Feedback Events . | . . Feedback Blocked . | . . Robot Schematics Acquired . | . . Robots Built . | . . Authchips . | . . Time . | . . Total Robot Build Rating . | . . Part Schematics Acquired . | . . Parts Built . | . . Authchips . | . . Time . | . . Total Part Build Rating . | . . Parts Repaired . | . . Time . | . . Parts Recycled . | . . Recycled Matter 131 | . 131 Retrieved Matter . | . . Retrieved Components . | . . Parts Scanalyzed . | . . Part Schematics Acquired . | . . Parts Damaged . | . . Bothacking | -11 -10 ------------ Run | Yrd Mat Used RIF Installer . | . . Robots Hacked 3 | . 3 Non-combat 3 | . 3 Combat . | . . Robot Hacks Applied 6 | . 6 parse_system 3 | . 3 no_distress 1 | . 1 find_recycling 1 | . 1 check_alert 1 | . 1 Relay Couplers Released . | . . Fabnet Peak Effective % . | . . Robots Rewired . | . . Allies Hacked . | . . Hacks Repelled . | . . Allies | -11 -10 -------- Run | Yrd Mat Total Allies . | . . Largest Group . | . . Highest-Rated Group . | . . Highest-Rated Ally . | . . Total Orders . | . . Ally Attacks . | . . Total Damage . | . . Kills . | . . Allies Corrupted . | . . Allies Melted . | . . Intel | -11 -10 ------- Run | Yrd Mat Robot Analysis Total . | . . Derelict Logs Recovered . | . . Drone Launches . | . . Drone Recoveries . | . . Exploration | -11 -10 ------------- Run | Yrd Mat Turns Passed 783 | 206 577 Spaces Moved 524 | 152 372 Core 29 | 27 2 Treads . | . . Legs 495 | 125 370 Wheels . | . . Hover . | . . Flight . | . . Fastest Speed 50 | 50 120 Average Speed 123 | 107 130 Slowest Speed 350 | 120 350 Overloaded Moves . | . . Propulsion Burnouts . | . . Robots Hopped . | . . Cave-ins Triggered . | . . Exploration Rate (%) 28 | 6 50 Regions Visited 1 Branch Regions . Pre-discovered Areas . | . . Known Exits Taken . | . . Unknown Exits Taken 1 | 1 . Scrap Searched . | . . Spaces Dug . | . . Terrain Destroyed 42 | . 42 Melee . | . . Projectile . | . . AOE 42 | . 42 Terrain Rammed . | . . Walls Destroyed . | . . Machines Disabled . | . . Actions | -11 -10 --------- Run | Yrd Mat Total 620 | 179 441 Wait 18 | 1 17 Move 523 | 151 372 Hop . | . . Pick Up 20 | 10 10 Fast Attach 4 | 2 2 Attach 9 | 4 5 Detach 4 | 1 3 Swap . | . . Drop 9 | 2 7 Fire 25 | 8 17 Melee 8 | . 8 Ram . | . . Kick . | . . Crush . | . . Escape Stasis . | . . Rewire . | . . Trap . | . . Miscellaneous . | . . Route ------- -11/Scrapyard -10/Materials (discovered 3 exits: [*Mat x2] / [*Min]) History --------- Turn | Location | Event 2 | -11/Scrapyard | Met Revision 17 83 | -11/Scrapyard | Discovered new exit (range 8) 207 | -11/Scrapyard | Entered Materials 304 | -10/Materials | Build established: Mutant 430 | -10/Materials | Discovered new exit (range 15) 465 | -10/Materials | Discovered new exit (range 15) 633 | -10/Materials | Discovered new exit (range 11) 766 | -10/Materials | Core integrity fell below 50% 781 | -10/Materials | Core integrity fell below 20% 784 | -10/Materials | Destroyed by G-34 Mercenary with Small Laser Last Messages --------------- 00772_ Aluminum Leg destroyed. 00772_ U-05 Engineer lays Concrete. 00772_ R-06 Scavenger inserts Aluminum Leg into recycling unit. 00773_ U-05 Engineer lays Concrete. 00774_ Med. Laser destroyed. 00774_ U-05 Engineer lays Concrete. 00775_ R-06 Scavenger inserts Aluminum Leg into recycling unit. 00776_ U-05 Engineer lays Concrete. 00777_ Aluminum Leg destroyed. 00778_ U-05 Engineer lays Concrete. 00778_ R-06 Scavenger inserts Aluminum Leg into recycling unit. 00779_ System corrupted: IFF burst signal emitted. 00779_ U-05 Engineer lays Concrete. 00781_ Terrain Scanner destroyed. 00783_ U-05 Engineer lays Concrete. [Achievement: First Step to Greatness] Map ----- +----------------------------------------------------+ | ?????# * % ### "T" """ # ########???# | | ?????# % ### """ """ # #??????????## | | #????# * + # #??#???????## | | ?????# ################ ##?????????# | | ?????# # ##????????#?#""" #?????????# | | ?????# """ "" # ##???#??????#" #??????#??# | | ?????# """ """ # #########???#" #????#????# | | ?????# """ """ # #### # ####?#"" < #?????????#? | | ?????########### ## " " #?#"| #??????????? | | ??#?############ ## #?#" #?????? ???? | | ?#??# # % =#?#""" #??????????? | | ???## < / #?#### ##??????????? | | ????# # " " #????# #???????????? | | ???### ### # """" #??#?# #???????????? | | ?????# #?# # """"" #????# #???????????? | | ?????#! !#?# # """ #????# #???????????? | | ?????##! !!##?# # [?????? #???????????? | | ??????######?## ############### #???????????? | | ??????????#??# [% ##### #???????????? | | ????????????## !% u #???????????? | | ?????????????# * r """ #???????????? | | ?????????????## """ ##???????????? | | ??????? "Y" """ #????????????? | | ?#????? """ #????????????? | | ???????### ## ## ## #a g g #?#??#???????? | | ???#?????#?#### ######## @ g g ] #????????????? | | ???????? ????? #?#?#??##/#######k #????????????? | | ????????? ???"" #?????? ????#? ?????????? | | ?????????? ?""" ?????? """?????? ??????? | | ?????????????"" ?????# """ ????? #######??????? | | ??????????????" ??#??# """ ????? #????????????? | | ??????????????" ????## ?????? #????????????? | | ?????????????? ?????# """ ?#?????#??? ????????? | | ???????????????!?????# ""??????????????????????? | | ???????????????#?????# ????????????????????????? | | ?????????????????????# ! ?????????#??????????????? | | ?????????????????????####????????????????????????? | | ?????????????????????????????????????????????????? | | ?????????????????????????????????????????????????? | | ?????????????????????????????????????????????????? | | ?????????????????????????????????????????????????? | | ?????????????????????????????????????????????????? | | ?????????????????????????????????????????????????? | | ?????????????????????????????????????????????????? | | ?????????????????????????????????????????????????? | | | | | | | | | | | +----------------------------------------------------+ Best States ------------- Heat Dissipation 35 Energy Generation 10 Energy Capacity 125 Matter Stores 300 Matter Capacity 350 Sight Range 16 Terrain Scan Range 14 Terrain Scan Density 10 Evasion (%) 55 Item Schematics ----------------- None Robot Schematics ------------------ None Fabricated ------------ Nothing Alien Tech Used ----------------- None Achievements -------------- First Step to Greatness Let's See Who's Tougher Shopping List Storm Trooper Uninvited Guest Challenges ------------ None Game ------ Seed RiotCloakingBuckler Manual? 0 Play Time 00:52:43 Cumulative 0.8 hours Start 2024.03.31 @ 15:21:25 End 2024.03.31 @ 16:28:01 Sessions 1 Manual Loads 0 Difficulty Rogue Special Mode None Game No. 1 Rogue 1 Adventurer 0 Explorer 0 Win Type - Total 0 Types 0/0/0/0/0/0/0/0/0 Lore% 0 Gallery% 1 Achievement% 1 Wizard Run 0 Options --------- Layout 1 ASCII 0 Keyboard 1 Movement Arrows Keybinds 0 Fullscreen 2 Font 24/Terminus Map View 50x35 Zoom Use 2% Tactical HUD 1 Map Filters NONE Filters NONE Steam 1 RUN: 7800ed00-0312-4b5c-9488-a6943febcf8e